[Event "Late-Titled-Tuesday-Blitz-March-19-2024"]
[Site "Chess.com"]
[Date "2024.03.19"]
[Round "5"]
[White "Quattroporte300"]
[Black "Bryanl106"]
[Result "0-1"]
[WhiteElo "2508"]
[BlackElo "2682"]
[TimeControl "180+1"]
[EndTime "14:54:02 PDT"]
[Termination "Bryanl106 won by resignation"]

1. e4 {[%clk 0:03:00.9]} 1... e5 {[%clk 0:02:59.3]} 2. Nf3 {[%clk 0:03:00.5]}
2... Nc6 {[%clk 0:02:58.8]} 3. d4 {[%clk 0:03:01]} 3... exd4 {[%clk 0:02:59]} 4.
Nxd4 {[%clk 0:03:01.9]} 4... Bb4+ {[%clk 0:02:59.4]} 5. c3 {[%clk 0:03:01.9]}
5... Bc5 {[%clk 0:02:59.5]} 6. Be3 {[%clk 0:03:02.5]} 6... Bb6 {[%clk
0:03:00.1]} 7. Nf5 {[%clk 0:02:56.9]} 7... Bxe3 {[%clk 0:02:56.5]} 8. Nxe3
{[%clk 0:02:57.8]} 8... d6 {[%clk 0:02:56.3]} 9. Bc4 {[%clk 0:02:56.8]} 9... Nf6
{[%clk 0:02:55]} 10. Nd2 {[%clk 0:02:56]} 10... O-O {[%clk 0:02:55.2]} 11. O-O
{[%clk 0:02:56]} 11... Be6 {[%clk 0:02:51.3]} 12. f3 {[%clk 0:02:47.6]} 12...
Bxc4 {[%clk 0:02:50.1]} 13. Ndxc4 {[%clk 0:02:45.9]} 13... b5 {[%clk 0:02:44.7]}
14. Nd2 {[%clk 0:02:37.8]} 14... d5 {[%clk 0:02:39.5]} 15. exd5 {[%clk 0:02:37]}
15... Nxd5 {[%clk 0:02:40.4]} 16. Nxd5 {[%clk 0:02:37.2]} 16... Qxd5 {[%clk
0:02:40.4]} 17. Ne4 {[%clk 0:02:37.2]} 17... Rad8 {[%clk 0:02:40.5]} 18. Qxd5
{[%clk 0:02:35.3]} 18... Rxd5 {[%clk 0:02:41.4]} 19. Rad1 {[%clk 0:02:35.3]}
19... Rfd8 {[%clk 0:02:40.9]} 20. Rxd5 {[%clk 0:02:12.3]} 20... Rxd5 {[%clk
0:02:41.8]} 21. Re1 {[%clk 0:02:08.9]} 21... Kf8 {[%clk 0:02:40.8]} 22. Kf2
{[%clk 0:02:06.8]} 22... h6 {[%clk 0:02:39.1]} 23. Re2 {[%clk 0:02:01.3]} 23...
Ne5 {[%clk 0:02:37.8]} 24. b3 {[%clk 0:01:49.5]} 24... f5 {[%clk 0:02:36.1]} 25.
Ng3 {[%clk 0:01:18.4]} 25... f4 {[%clk 0:02:20.9]} 26. Ne4 {[%clk 0:01:04.6]}
26... Nd3+ {[%clk 0:02:19.8]} 27. Kf1 {[%clk 0:01:03.1]} 27... Nc1 {[%clk
0:02:20.1]} 28. Rc2 {[%clk 0:00:58]} 28... Rd1+ {[%clk 0:02:07.1]} 29. Kf2
{[%clk 0:00:57.9]} 29... Rh1 {[%clk 0:02:07.7]} 30. Nc5 {[%clk 0:00:52]} 30...
Ke7 {[%clk 0:01:58.2]} 31. h3 {[%clk 0:00:48.6]} 31... Kd6 {[%clk 0:01:56.1]}
32. b4 {[%clk 0:00:49.1]} 32... Kd5 {[%clk 0:01:55.3]} 33. Rd2+ {[%clk
0:00:31.8]} 33... Kc4 {[%clk 0:01:53.6]} 34. Rc2 {[%clk 0:00:31]} 34... Nd3+
{[%clk 0:01:53]} 35. Nxd3 {[%clk 0:00:25]} 35... Kxd3 {[%clk 0:01:53.9]} 36. Re2
{[%clk 0:00:23.8]} 36... Kxc3 {[%clk 0:01:51.3]} 37. Re7 {[%clk 0:00:21.9]}
37... Kxb4 {[%clk 0:01:51.5]} 38. Rxc7 {[%clk 0:00:22]} 38... a5 {[%clk
0:01:51]} 39. Rxg7 {[%clk 0:00:22.1]} 39... Ra1 {[%clk 0:01:51.2]} 40. Rf7
{[%clk 0:00:18]} 40... Rxa2+ {[%clk 0:01:51.1]} 41. Kg1 {[%clk 0:00:17.8]} 41...
a4 {[%clk 0:01:51.5]} 42. Rxf4+ {[%clk 0:00:18.2]} 42... Kb3 {[%clk 0:01:51.9]}
43. Rh4 {[%clk 0:00:11.2]} 43... a3 {[%clk 0:01:51.4]} 44. Rxh6 {[%clk
0:00:11.8]} 44... Ra1+ {[%clk 0:01:51.1]} 45. Kh2 {[%clk 0:00:12.1]} 45... b4
{[%clk 0:01:51]} 46. Ra6 {[%clk 0:00:11.5]} 46... Rc1 {[%clk 0:01:50.9]} 47. h4
{[%clk 0:00:11.7]} 47... a2 {[%clk 0:01:51.3]} 48. h5 {[%clk 0:00:12.3]} 48...
a1=Q {[%clk 0:01:51.9]} 49. Rxa1 {[%clk 0:00:11.9]} 49... Rxa1 {[%clk
0:01:52.8]} 50. g4 {[%clk 0:00:11.1]} 50... Kc3 {[%clk 0:01:52.1]} 51. h6 {[%clk
0:00:11.6]} 51... Ra8 {[%clk 0:01:51.6]} 52. g5 {[%clk 0:00:11.5]} 52... b3
{[%clk 0:01:52.2]} 53. g6 {[%clk 0:00:12.2]} 53... b2 {[%clk 0:01:52.8]} 54. g7
{[%clk 0:00:12.7]} 54... b1=Q {[%clk 0:01:53.2]} 0-1

[Event "Late-Titled-Tuesday-Blitz-March-19-2024"]
[Site "Chess.com"]
[Date "2024.03.19"]
[Round "5"]
[White "rikchessmx"]
[Black "Szachulec75"]
[Result "1-0"]
[WhiteElo "2302"]
[BlackElo "2183"]
[TimeControl "180+1"]
[EndTime "14:54:10 PDT"]
[Termination "rikchessmx won on time"]

1. e4 {[%clk 0:02:40.3]} 1... d6 {[%clk 0:02:57.6]} 2. d4 {[%clk 0:02:39.7]}
2... Nf6 {[%clk 0:02:56.3]} 3. Nc3 {[%clk 0:02:40.6]} 3... Nbd7 {[%clk
0:02:51.4]} 4. Bc4 {[%clk 0:02:37.7]} 4... e5 {[%clk 0:02:51.1]} 5. Nge2 {[%clk
0:02:37.9]} 5... Be7 {[%clk 0:02:50.8]} 6. f3 {[%clk 0:02:37.7]} 6... O-O {[%clk
0:02:50.8]} 7. Be3 {[%clk 0:02:37.8]} 7... c6 {[%clk 0:02:51]} 8. Qd2 {[%clk
0:02:37.2]} 8... b5 {[%clk 0:02:50.4]} 9. Bb3 {[%clk 0:02:37.4]} 9... a5 {[%clk
0:02:48.2]} 10. a4 {[%clk 0:02:36.8]} 10... b4 {[%clk 0:02:40.7]} 11. Nd1 {[%clk
0:02:36.6]} 11... Ba6 {[%clk 0:02:35.4]} 12. g4 {[%clk 0:02:34.4]} 12... c5
{[%clk 0:02:24.5]} 13. c3 {[%clk 0:02:32.7]} 13... Rb8 {[%clk 0:02:14.2]} 14.
Bc2 {[%clk 0:02:23.6]} 14... Ne8 {[%clk 0:01:50]} 15. O-O {[%clk 0:02:16]} 15...
Nb6 {[%clk 0:01:34.3]} 16. dxc5 {[%clk 0:02:10.7]} 16... Nc4 {[%clk 0:01:30.9]}
17. Qc1 {[%clk 0:02:07.9]} 17... Nxb2 {[%clk 0:01:06.2]} 18. Nxb2 {[%clk
0:01:44.9]} 18... Bxe2 {[%clk 0:01:04.4]} 19. Rf2 {[%clk 0:01:44.9]} 19... bxc3
{[%clk 0:01:03.3]} 20. Nd3 {[%clk 0:01:42.7]} 20... Bxd3 {[%clk 0:00:54.7]} 21.
Bxd3 {[%clk 0:01:42.4]} 21... dxc5 {[%clk 0:00:43]} 22. Qxc3 {[%clk 0:01:40.2]}
22... f6 {[%clk 0:00:36.2]} 23. Rd2 {[%clk 0:01:38]} 23... Qc7 {[%clk
0:00:33.3]} 24. Rad1 {[%clk 0:01:35.2]} 24... Nd6 {[%clk 0:00:26.8]} 25. Bc4+
{[%clk 0:01:35]} 25... Kh8 {[%clk 0:00:26.3]} 26. Be6 {[%clk 0:01:27.6]} 26...
c4 {[%clk 0:00:15.3]} 27. Rd5 {[%clk 0:01:06.1]} 27... Rb3 {[%clk 0:00:15]} 28.
Qe1 {[%clk 0:01:04.6]} 28... c3 {[%clk 0:00:10]} 29. Rc1 {[%clk 0:01:01.6]} 1-0

[Event "Late-Titled-Tuesday-Blitz-March-19-2024"]
[Site "Chess.com"]
[Date "2024.03.19"]
[Round "5"]
[White "Legendinunknown"]
[Black "Zq1"]
[Result "1-0"]
[WhiteElo "2830"]
[BlackElo "2628"]
[TimeControl "180+1"]
[EndTime "14:54:11 PDT"]
[Termination "Legendinunknown won by resignation"]

1. d4 {[%clk 0:03:00.9]} 1... Nf6 {[%clk 0:02:59.1]} 2. c4 {[%clk 0:03:00.3]}
2... a6 {[%clk 0:02:58.5]} 3. Nc3 {[%clk 0:02:58.5]} 3... c5 {[%clk 0:02:57.8]}
4. dxc5 {[%clk 0:02:59.1]} 4... e6 {[%clk 0:02:57.2]} 5. e4 {[%clk 0:02:59.6]}
5... Qc7 {[%clk 0:02:56.5]} 6. Nf3 {[%clk 0:02:58.2]} 6... Bxc5 {[%clk
0:02:54.3]} 7. Be2 {[%clk 0:02:57.7]} 7... Be7 {[%clk 0:02:50.2]} 8. e5 {[%clk
0:02:54.7]} 8... Ng4 {[%clk 0:02:47.5]} 9. Bf4 {[%clk 0:02:55.3]} 9... Nc6
{[%clk 0:02:45.7]} 10. O-O {[%clk 0:02:43.8]} 10... Ngxe5 {[%clk 0:02:42.9]} 11.
Nxe5 {[%clk 0:02:43]} 11... Nxe5 {[%clk 0:02:42.2]} 12. Bg3 {[%clk 0:02:43.7]}
12... d6 {[%clk 0:02:38.7]} 13. Ne4 {[%clk 0:02:39.9]} 13... O-O {[%clk
0:02:30.1]} 14. c5 {[%clk 0:02:35.2]} 14... dxc5 {[%clk 0:02:25.5]} 15. f4
{[%clk 0:02:35.1]} 15... Nc6 {[%clk 0:02:16.6]} 16. f5 {[%clk 0:02:34.4]} 16...
Qd8 {[%clk 0:02:12.3]} 17. f6 {[%clk 0:02:28.7]} 17... Qxd1 {[%clk 0:02:00.1]}
18. Raxd1 {[%clk 0:02:27.2]} 18... gxf6 {[%clk 0:01:39.4]} 19. Nxf6+ {[%clk
0:02:28.1]} 19... Kg7 {[%clk 0:01:35.7]} 20. Nh5+ {[%clk 0:02:11.1]} 20... Kh8
{[%clk 0:01:34.8]} 21. Bd6 {[%clk 0:02:05.6]} 21... Bxd6 {[%clk 0:01:28.5]} 22.
Rxd6 {[%clk 0:02:06.5]} 22... Nd4 {[%clk 0:01:27.9]} 23. Bd3 {[%clk 0:02:01]}
23... f5 {[%clk 0:01:24.2]} 24. g4 {[%clk 0:01:55.5]} 24... b5 {[%clk
0:01:11.1]} 25. gxf5 {[%clk 0:01:53]} 25... exf5 {[%clk 0:01:07.4]} 26. Kf2
{[%clk 0:01:51.1]} 26... Bb7 {[%clk 0:01:02.7]} 27. Re1 {[%clk 0:01:50.7]} 27...
Be4 {[%clk 0:00:56.2]} 28. Bxe4 {[%clk 0:01:43.6]} 28... fxe4+ {[%clk
0:00:55.8]} 29. Kg2 {[%clk 0:01:44.1]} 29... Rg8+ {[%clk 0:00:51.6]} 30. Ng3
{[%clk 0:01:43.5]} 30... Nf5 {[%clk 0:00:47.6]} 31. Re6 {[%clk 0:01:42.4]} 31...
Nh4+ {[%clk 0:00:43.2]} 32. Kh1 {[%clk 0:01:38.7]} 32... Nf3 {[%clk 0:00:42.7]}
33. Re3 {[%clk 0:01:38.1]} 33... Rad8 {[%clk 0:00:34.4]} 34. R6xe4 {[%clk
0:01:31.2]} 34... Rd1+ {[%clk 0:00:32.1]} 35. Kg2 {[%clk 0:01:30.9]} 35... Nh4+
{[%clk 0:00:29.5]} 36. Rxh4 {[%clk 0:01:30.3]} 36... Rd2+ {[%clk 0:00:27.6]} 37.
Kh3 {[%clk 0:01:27.1]} 37... Rxb2 {[%clk 0:00:26.9]} 38. Re7 {[%clk 0:01:26.3]}
38... Rg7 {[%clk 0:00:26]} 39. Re8+ {[%clk 0:01:25.1]} 39... Rg8 {[%clk
0:00:26]} 40. Re6 {[%clk 0:01:24.3]} 40... Rxa2 {[%clk 0:00:24]} 41. Rh5 {[%clk
0:01:24.3]} 41... c4 {[%clk 0:00:23]} 42. Nf5 {[%clk 0:01:22.8]} 42... Ra3+
{[%clk 0:00:21.4]} 43. Kh4 {[%clk 0:01:22.2]} 43... Rf3 {[%clk 0:00:20.3]} 44.
Rxh7+ {[%clk 0:01:14.4]} 1-0

[Event "Late-Titled-Tuesday-Blitz-March-19-2024"]
[Site "Chess.com"]
[Date "2024.03.19"]
[Round "5"]
[White "krzyzan94"]
[Black "nabukatnezarr"]
[Result "1-0"]
[WhiteElo "2793"]
[BlackElo "2586"]
[TimeControl "180+1"]
[EndTime "14:54:13 PDT"]
[Termination "krzyzan94 won by resignation"]

1. e4 {[%clk 0:03:00.9]} 1... e5 {[%clk 0:02:52]} 2. Nf3 {[%clk 0:03:01]} 2...
Nc6 {[%clk 0:02:49.9]} 3. Bc4 {[%clk 0:03:01.4]} 3... Nf6 {[%clk 0:02:49.5]} 4.
d3 {[%clk 0:03:00]} 4... Bc5 {[%clk 0:02:47.7]} 5. Nc3 {[%clk 0:02:58.6]} 5...
h6 {[%clk 0:02:39.3]} 6. O-O {[%clk 0:02:44.1]} 6... a6 {[%clk 0:02:36.4]} 7.
Be3 {[%clk 0:02:43.9]} 7... d6 {[%clk 0:02:28.7]} 8. a3 {[%clk 0:02:37.6]} 8...
Bg4 {[%clk 0:02:24.9]} 9. h3 {[%clk 0:02:36]} 9... Bh5 {[%clk 0:02:22.4]} 10. b4
{[%clk 0:02:34.8]} 10... Bd4 {[%clk 0:02:19]} 11. Bxd4 {[%clk 0:02:29.7]} 11...
Nxd4 {[%clk 0:02:15.5]} 12. g4 {[%clk 0:02:29.3]} 12... Bg6 {[%clk 0:01:07.9]}
13. Nxd4 {[%clk 0:02:26.3]} 13... exd4 {[%clk 0:01:08.8]} 14. Ne2 {[%clk
0:02:18.3]} 14... O-O {[%clk 0:01:02.9]} 15. Nxd4 {[%clk 0:02:11.5]} 15... d5
{[%clk 0:01:03.1]} 16. exd5 {[%clk 0:02:10.7]} 16... Nxd5 {[%clk 0:01:04]} 17.
Ne2 {[%clk 0:02:02.4]} 17... Qd6 {[%clk 0:00:57.5]} 18. Qd2 {[%clk 0:01:58.2]}
18... Rae8 {[%clk 0:00:55.6]} 19. Bxd5 {[%clk 0:01:57.5]} 19... Qxd5 {[%clk
0:00:56.5]} 20. f4 {[%clk 0:01:50.7]} 20... f5 {[%clk 0:00:53.2]} 21. c4 {[%clk
0:01:46.1]} 21... Qd7 {[%clk 0:00:51]} 22. g5 {[%clk 0:01:43.3]} 22... Rd8
{[%clk 0:00:27.5]} 23. d4 {[%clk 0:01:40.7]} 23... Qc6 {[%clk 0:00:24.2]} 24.
Rac1 {[%clk 0:01:38.1]} 24... Rfe8 {[%clk 0:00:24.7]} 25. d5 {[%clk 0:01:37.8]}
25... Qb6+ {[%clk 0:00:25]} 26. c5 {[%clk 0:01:31.4]} 26... Qb5 {[%clk 0:00:25]}
27. Rf2 {[%clk 0:01:32.1]} 27... hxg5 {[%clk 0:00:18.8]} 28. fxg5 {[%clk
0:01:33]} 28... f4 {[%clk 0:00:18.7]} 29. Nxf4 {[%clk 0:01:33.3]} 29... Be4
{[%clk 0:00:19.1]} 30. d6 {[%clk 0:01:31.8]} 30... cxd6 {[%clk 0:00:18.6]} 31.
cxd6 {[%clk 0:01:32.7]} 31... Qb6 {[%clk 0:00:17.9]} 32. Rd1 {[%clk 0:01:29.1]}
32... Rd7 {[%clk 0:00:17.2]} 33. Qd4 {[%clk 0:01:25.5]} 33... Qc6 {[%clk
0:00:14.5]} 34. Re2 {[%clk 0:01:22.9]} 34... Rf7 {[%clk 0:00:10.3]} 35. d7
{[%clk 0:01:22.3]} 35... Rd8 {[%clk 0:00:10.1]} 36. Qxe4 {[%clk 0:01:22.4]}
36... Qb6+ {[%clk 0:00:07.2]} 37. Kg2 {[%clk 0:01:18.7]} 37... Rfxd7 {[%clk
0:00:05.8]} 38. Rxd7 {[%clk 0:01:19.6]} 38... Rxd7 {[%clk 0:00:06.7]} 39. Qe8+
{[%clk 0:01:19.5]} 1-0

[Event "Late-Titled-Tuesday-Blitz-March-19-2024"]
[Site "Chess.com"]
[Date "2024.03.19"]
[Round "5"]
[White "Narek_Ghimoyan"]
[Black "DrKerfuffle"]
[Result "0-1"]
[WhiteElo "2456"]
[BlackElo "2839"]
[TimeControl "180+1"]
[EndTime "14:54:13 PDT"]
[Termination "DrKerfuffle won by resignation"]

1. d4 {[%clk 0:03:00.9]} 1... Nf6 {[%clk 0:02:59.5]} 2. c4 {[%clk 0:03:00.5]}
2... e5 {[%clk 0:02:59.4]} 3. dxe5 {[%clk 0:02:59.9]} 3... Ng4 {[%clk
0:02:59.9]} 4. Nf3 {[%clk 0:02:59.4]} 4... Bc5 {[%clk 0:02:59.9]} 5. e3 {[%clk
0:02:58.2]} 5... Nc6 {[%clk 0:03:00.1]} 6. a3 {[%clk 0:02:48.4]} 6... a5 {[%clk
0:02:59.2]} 7. b3 {[%clk 0:02:40.8]} 7... Ngxe5 {[%clk 0:02:58.5]} 8. Bb2 {[%clk
0:02:38.6]} 8... Qe7 {[%clk 0:02:41.9]} 9. Nc3 {[%clk 0:00:35.3]} 9... Nxf3+
{[%clk 0:02:40]} 10. Qxf3 {[%clk 0:00:36.2]} 10... Ne5 {[%clk 0:02:40.2]} 11.
Qd1 {[%clk 0:00:36.3]} 11... c6 {[%clk 0:02:40.3]} 12. Be2 {[%clk 0:00:35.9]}
12... O-O {[%clk 0:02:39.5]} 13. O-O {[%clk 0:00:35.9]} 13... Re8 {[%clk
0:02:36.5]} 14. Ne4 {[%clk 0:00:35.4]} 14... Ba7 {[%clk 0:02:26.9]} 15. Qd6
{[%clk 0:00:32.5]} 15... Bb8 {[%clk 0:02:19.4]} 16. Qxe7 {[%clk 0:00:31.7]}
16... Rxe7 {[%clk 0:02:20.3]} 17. f3 {[%clk 0:00:31.7]} 17... Ng6 {[%clk
0:02:09.2]} 18. Rfd1 {[%clk 0:00:30.9]} 18... f5 {[%clk 0:02:01.2]} 19. Nd6
{[%clk 0:00:30.3]} 19... Bxd6 {[%clk 0:02:01]} 20. Rxd6 {[%clk 0:00:29.9]} 20...
Rxe3 {[%clk 0:02:01.9]} 21. Bd3 {[%clk 0:00:28.7]} 21... Nf4 {[%clk 0:01:56.1]}
22. Bc2 {[%clk 0:00:27.5]} 22... Re2 {[%clk 0:01:55.5]} 23. Rc1 {[%clk
0:00:16.5]} 23... Rxg2+ {[%clk 0:01:54.8]} 24. Kf1 {[%clk 0:00:17.4]} 24... Rxh2
{[%clk 0:01:53.1]} 25. Kg1 {[%clk 0:00:17.6]} 25... Rh5 {[%clk 0:01:40.1]} 26.
Kf2 {[%clk 0:00:17.7]} 26... Kf7 {[%clk 0:01:30.5]} 27. Be5 {[%clk 0:00:15.2]}
27... Ne6 {[%clk 0:01:23.8]} 28. Rg1 {[%clk 0:00:14.9]} 28... g6 {[%clk
0:01:23.8]} 29. Rg2 {[%clk 0:00:13]} 29... b5 {[%clk 0:01:20.6]} 30. c5 {[%clk
0:00:12.4]} 30... f4 {[%clk 0:01:19.9]} 31. b4 {[%clk 0:00:11.9]} 31... Rxe5
{[%clk 0:01:19.7]} 32. Rh2 {[%clk 0:00:10]} 32... h5 {[%clk 0:01:18.3]} 33. Rg2
{[%clk 0:00:09.6]} 33... g5 {[%clk 0:01:09.7]} 34. Rh2 {[%clk 0:00:08.8]} 34...
h4 {[%clk 0:01:09.4]} 35. Rg2 {[%clk 0:00:08.7]} 35... axb4 {[%clk 0:01:09.6]}
0-1

[Event "Late-Titled-Tuesday-Blitz-March-19-2024"]
[Site "Chess.com"]
[Date "2024.03.19"]
[Round "5"]
[White "dolynachess"]
[Black "chessamical"]
[Result "1-0"]
[WhiteElo "2511"]
[BlackElo "2279"]
[TimeControl "180+1"]
[EndTime "14:54:14 PDT"]
[Termination "dolynachess won on time"]

1. d4 {[%clk 0:03:00.9]} 1... Nf6 {[%clk 0:02:57.1]} 2. c4 {[%clk 0:02:59.1]}
2... e6 {[%clk 0:02:56.7]} 3. g3 {[%clk 0:02:58.3]} 3... c5 {[%clk 0:02:45.8]}
4. Bg2 {[%clk 0:02:59.2]} 4... cxd4 {[%clk 0:02:45.4]} 5. Nf3 {[%clk 0:02:59.6]}
5... d5 {[%clk 0:02:39.7]} 6. O-O {[%clk 0:02:58.1]} 6... Bc5 {[%clk 0:02:31.6]}
7. cxd5 {[%clk 0:02:51.5]} 7... Qxd5 {[%clk 0:02:25.2]} 8. Nbd2 {[%clk
0:02:42.1]} 8... d3 {[%clk 0:01:11]} 9. Nb3 {[%clk 0:02:33.8]} 9... Bb6 {[%clk
0:01:09.5]} 10. exd3 {[%clk 0:02:24.8]} 10... O-O {[%clk 0:01:05]} 11. d4 {[%clk
0:02:24.9]} 11... Nc6 {[%clk 0:01:01.3]} 12. Ne5 {[%clk 0:02:23.1]} 12... Ne4
{[%clk 0:00:24]} 13. Nxc6 {[%clk 0:02:16]} 13... bxc6 {[%clk 0:00:23.5]} 14. Nc5
{[%clk 0:01:46.7]} 14... Bxc5 {[%clk 0:00:18]} 15. dxc5 {[%clk 0:01:46.9]} 15...
Qxd1 {[%clk 0:00:18]} 16. Rxd1 {[%clk 0:01:47.2]} 16... Nxc5 {[%clk 0:00:18.6]}
17. Be3 {[%clk 0:01:27.6]} 17... Na6 {[%clk 0:00:13.5]} 18. Bxc6 {[%clk
0:01:19.1]} 18... Rb8 {[%clk 0:00:13.5]} 19. b3 {[%clk 0:01:15.8]} 19... Nb4
{[%clk 0:00:13.4]} 20. Be4 {[%clk 0:01:12.5]} 20... a5 {[%clk 0:00:12.8]} 21.
Rd2 {[%clk 0:01:10.6]} 21... Ba6 {[%clk 0:00:12.1]} 22. Rc1 {[%clk 0:01:03.9]}
22... Rfc8 {[%clk 0:00:05.7]} 23. Rc5 {[%clk 0:01:03]} 23... Rxc5 {[%clk
0:00:04.2]} 24. Bxc5 {[%clk 0:01:03.9]} 24... Rc8 {[%clk 0:00:04.1]} 25. a3
{[%clk 0:00:50.9]} 25... Nc6 {[%clk 0:00:01.7]} 26. Bxc6 {[%clk 0:00:49.4]} 1-0

[Event "Late-Titled-Tuesday-Blitz-March-19-2024"]
[Site "Chess.com"]
[Date "2024.03.19"]
[Round "5"]
[White "Jamal-Jamal-Jamal"]
[Black "cthake"]
[Result "1-0"]
[WhiteElo "2254"]
[BlackElo "1819"]
[TimeControl "180+1"]
[EndTime "14:54:15 PDT"]
[Termination "Jamal-Jamal-Jamal won by checkmate"]

1. e4 {[%clk 0:03:00.9]} 1... e6 {[%clk 0:02:59.9]} 2. d4 {[%clk 0:03:00.3]}
2... d5 {[%clk 0:03:00]} 3. Nd2 {[%clk 0:02:55.3]} 3... Nf6 {[%clk 0:02:58.5]}
4. e5 {[%clk 0:02:54.2]} 4... Nfd7 {[%clk 0:02:58.4]} 5. Bd3 {[%clk 0:02:55.1]}
5... c5 {[%clk 0:02:58.3]} 6. c3 {[%clk 0:02:56]} 6... Nc6 {[%clk 0:02:58.2]} 7.
Ne2 {[%clk 0:02:56.4]} 7... cxd4 {[%clk 0:02:54.4]} 8. cxd4 {[%clk 0:02:57.3]}
8... f6 {[%clk 0:02:53.5]} 9. Nf4 {[%clk 0:02:44.8]} 9... Nxd4 {[%clk
0:02:40.9]} 10. Qh5+ {[%clk 0:02:43.7]} 10... Ke7 {[%clk 0:02:29.3]} 11. exf6+
{[%clk 0:02:43.8]} 11... gxf6 {[%clk 0:02:01.8]} 12. Ng6+ {[%clk 0:02:42.1]}
12... hxg6 {[%clk 0:02:00.8]} 13. Qxh8 {[%clk 0:02:42.3]} 13... Ne5 {[%clk
0:01:52.1]} 14. Qh7+ {[%clk 0:02:27.8]} 14... Kd6 {[%clk 0:01:51.8]} 15. Bxg6
{[%clk 0:02:25.8]} 15... Be7 {[%clk 0:01:35.5]} 16. O-O {[%clk 0:01:54.2]} 16...
Bd7 {[%clk 0:01:34.3]} 17. Nb3 {[%clk 0:01:46.7]} 17... Ne2+ {[%clk 0:01:18]}
18. Kh1 {[%clk 0:01:43.6]} 18... Nxc1 {[%clk 0:01:02.1]} 19. Raxc1 {[%clk
0:01:37.5]} 19... Nc4 {[%clk 0:00:48.3]} 20. Nd4 {[%clk 0:01:21.3]} 20... Qb6
{[%clk 0:00:45.3]} 21. Rxc4 {[%clk 0:01:06.8]} 21... dxc4 {[%clk 0:00:39.5]} 22.
Rd1 {[%clk 0:01:06.6]} 22... c3 {[%clk 0:00:15.6]} 23. bxc3 {[%clk 0:01:01.6]}
23... Ke5 {[%clk 0:00:14]} 24. Qxe7 {[%clk 0:00:58.5]} 24... Ba4 {[%clk
0:00:13.8]} 25. Nf3+ {[%clk 0:00:51]} 25... Kf4 {[%clk 0:00:13.1]} 26. Rd4+
{[%clk 0:00:50.9]} 26... Qxd4 {[%clk 0:00:05.1]} 27. cxd4 {[%clk 0:00:50]} 27...
Rc8 {[%clk 0:00:05.7]} 28. Qxf6+ {[%clk 0:00:49.7]} 28... Kg4 {[%clk 0:00:04.2]}
29. h3# {[%clk 0:00:49.3]} 1-0

[Event "Late-Titled-Tuesday-Blitz-March-19-2024"]
[Site "Chess.com"]
[Date "2024.03.19"]
[Round "5"]
[White "PapaieDudu"]
[Black "Hikaru"]
[Result "0-1"]
[WhiteElo "2472"]
[BlackElo "3249"]
[TimeControl "180+1"]
[EndTime "14:54:24 PDT"]
[Termination "Hikaru won by resignation"]

1. Nf3 {[%clk 0:03:00.9]} 1... g6 {[%clk 0:02:59.5]} 2. d4 {[%clk 0:03:00.9]}
2... Bg7 {[%clk 0:02:59.6]} 3. c4 {[%clk 0:03:01.5]} 3... d6 {[%clk 0:03:00.1]}
4. Nc3 {[%clk 0:03:01.4]} 4... Nd7 {[%clk 0:03:00.7]} 5. e3 {[%clk 0:03:01.4]}
5... c5 {[%clk 0:02:59.1]} 6. Be2 {[%clk 0:03:00.8]} 6... b6 {[%clk 0:02:58.4]}
7. O-O {[%clk 0:03:00]} 7... Bb7 {[%clk 0:02:58.1]} 8. Re1 {[%clk 0:02:59.4]}
8... Ngf6 {[%clk 0:02:57.3]} 9. b3 {[%clk 0:02:58.6]} 9... O-O {[%clk
0:02:57.2]} 10. Bb2 {[%clk 0:02:58.2]} 10... a6 {[%clk 0:02:56.7]} 11. Rc1
{[%clk 0:02:54.2]} 11... e6 {[%clk 0:02:49.1]} 12. d5 {[%clk 0:02:47.6]} 12...
exd5 {[%clk 0:02:48.3]} 13. cxd5 {[%clk 0:02:43.8]} 13... Nxd5 {[%clk
0:02:47.4]} 14. e4 {[%clk 0:02:34.4]} 14... Nxc3 {[%clk 0:02:39.4]} 15. Bxc3
{[%clk 0:02:34.4]} 15... Bxc3 {[%clk 0:02:38.7]} 16. Rxc3 {[%clk 0:02:35]} 16...
Nf6 {[%clk 0:02:39.6]} 17. Bd3 {[%clk 0:02:15.4]} 17... d5 {[%clk 0:02:39.7]}
18. exd5 {[%clk 0:02:14.6]} 18... Nxd5 {[%clk 0:02:39.8]} 19. Rc4 {[%clk
0:02:14.6]} 19... Nb4 {[%clk 0:02:37.1]} 20. Re3 {[%clk 0:02:13.5]} 20... Nxa2
{[%clk 0:02:34.2]} 21. Qe1 {[%clk 0:02:03.6]} 21... Nb4 {[%clk 0:02:31.7]} 22.
Be4 {[%clk 0:02:03.2]} 22... Bxe4 {[%clk 0:02:31.2]} 23. Rexe4 {[%clk
0:02:01.3]} 23... b5 {[%clk 0:02:24.7]} 24. Rc3 {[%clk 0:01:57.7]} 24... a5
{[%clk 0:02:24.8]} 25. h4 {[%clk 0:01:48]} 25... a4 {[%clk 0:02:24.6]} 26. h5
{[%clk 0:01:38.9]} 26... a3 {[%clk 0:02:24.9]} 27. h6 {[%clk 0:01:27.8]} 27...
a2 {[%clk 0:02:23.2]} 28. Rc1 {[%clk 0:01:26.2]} 28... Qf6 {[%clk 0:02:22.7]}
29. Ne5 {[%clk 0:01:21.6]} 29... Nd3 {[%clk 0:02:19.6]} 30. Ng4 {[%clk
0:01:12.2]} 30... Qb2 {[%clk 0:02:15.2]} 31. Qe2 {[%clk 0:00:41.2]} 31... Qxc1+
{[%clk 0:02:13.9]} 32. Kh2 {[%clk 0:00:40.7]} 32... a1=Q {[%clk 0:02:13.8]} 33.
Qf3 {[%clk 0:00:37.2]} 33... f5 {[%clk 0:02:01.5]} 34. Re7 {[%clk 0:00:31.4]}
34... Qh1+ {[%clk 0:01:46.4]} 35. Kg3 {[%clk 0:00:21.5]} 35... f4+ {[%clk
0:01:47.3]} 36. Qxf4 {[%clk 0:00:20.5]} 36... Nxf4 {[%clk 0:01:47.2]} 37. Rg7+
{[%clk 0:00:19.8]} 37... Kh8 {[%clk 0:01:47.2]} 38. b4 {[%clk 0:00:12.2]} 38...
Qc3+ {[%clk 0:01:43.5]} 39. Ne3 {[%clk 0:00:08.6]} 39... Qxb4 {[%clk 0:01:44.4]}
40. f3 {[%clk 0:00:07.5]} 40... Qxh6 {[%clk 0:01:43.4]} 41. Rxh7+ {[%clk
0:00:02.7]} 41... Qxh7 {[%clk 0:01:25.4]} 42. Ng4 {[%clk 0:00:01.9]} 42... Qe1+
{[%clk 0:01:20.8]} 43. Nf2 {[%clk 0:00:01.1]} 0-1